Workbook

Sheet Rollup
A1: 2012 Burden Estimate for 9007 - Renewable Energy Development Feasibility Study Grants
A2: OMB No 0570-0061 - USDA Rural Business-Cooperative Service
A3: Section of Notice | B3: Title | C3: Form No. (if any) | D3: No. of Respondents | E3: Reports Filed | F3: Total Responses (C) x (D) | G3: Estimated No. of Manhours per response | H3: Estimated Total Manhours (E) x (F) | I3: Wage** Class | J3: Total Cost (G) x (H)
A4: (A) | C4: (B) | D4: (C) | E4: (D) | F4: (E) | G4: (F) | H4: (G) | I4: (H) | J4: (I)
B5: Reporting - No Forms Approved Under this Docket
B7: Project Proposal - Applicants
A8: V.B.6 | B8: Application Narrative | C8: written | D8: 354 | E8: 1 | F8: =(D8)*(E8) -> 354 | G8: 8 | H8: =(F8)*(G8) -> 2,832 | I8: $62 | J8: =(H8)*(I8) -> $175,584
A9: V.B.6 | B9: Organizational documents | C9: written | D9: 354 | E9: 1 | F9: =(D9)*(E9) -> 354 | G9: 0.33 | H9: =(F9)*(G9) -> 117 | I9: $62 | J9: =(H9)*(I9) -> $7,243
A10: V.B.6 | B10: Intergovernmental comments | C10: written | D10: 354 | E10: 1 | F10: =(D10)*(E10) -> 354 | G10: 1 | H10: =(F10)*(G10) -> 354 | I10: $62 | J10: =(H10)*(I10) -> $21,948
B12: Grantees
A13: V.B.14 | B13: Performance Report - Semiannual | C13: written | D13: 248 | E13: 1 | F13: =(D13)*(E13) -> 248 | G13: 1 | H13: =(F13)*(G13) -> 248 | I13: $62 | J13: =(H13)*(I13) -> $15,376
A14: V.B.14 | B14: Performance Report - Final | C14: written | D14: 118 | E14: 1 | F14: 118 | G14: 1 | H14: 118 | I14: $62 | J14: $7,316
A15: V.B.14 | B15: Annual Status Report | C15: written | D15: 92 | E15: 1 | F15: 92 | G15: 1 | H15: 92 | I15: $62 | J15: $5,704
A16: V.B.14 | B16: Other Reports | C16: written | D16: 60 | E16: 1 | F16: 60 | G16: 1 | H16: 60 | I16: $62 | J16: $3,720
A17: V.B.14 | B17: Recordkeeping | D17: 275 | E17: 1 | F17: 275 | G17: 1 | H17: 275 | I17: $62 | J17: $17,050
B20: Reporting - Forms Approved Under this Docket
B21: Certification Regarding Debarment, Suspension & Other Resp. Matters-Primary Covered Trans. | C21: AD-1047 or in writing | D21: 220 | E21: 1 | F21: =(D21)*(E21) -> 220 | G21: 0.25 | H21: =(F21)*(G21) -> 55 | I21: $62 | J21: =(H21)*(I21) -> $3,410
B22: Certification Regarding Debarment, Suspension, Ineligibility & Vol. Excl. -Lower Tiered Covered Trans. | C22: AD-1048 or in writing | D22: 220 | E22: 1 | F22: 220 | G22: 0.25 | H22: 55 | I22: $62 | J22: $3,410
B23: Cert. Regarding Drug-Free Workplace Req. (Grants) Alt. I - For Grantees Other Than Individuals | C23: AD -1049 (9000-0101) | D23: 220 | E23: 1 | F23: 220 | G23: 0.25 | H23: 55 | I23: $62 | J23: $3,410
B24: Assurance Agreement | C24: RD 400-4 (0575-0018) | D24: 220 | E24: 1 | F24: 220 | G24: 0.25 | H24: 55 | I24: $62 | J24: $3,410
B25: Request for Obligation of Funds | C25: RD 1940-1 (0575-0062) | D25: 220 | E25: 1 | F25: 220 | G25: 0.25 | H25: 55 | I25: $62 | J25: $3,410
B26: Letter of Intent | C26: RD 1942-46 (0575-0015 and 0570-0061) | D26: 220 | E26: 1 | F26: 220 | G26: 1 | H26: 220 | I26: $62 | J26: $13,640
B27: RBS Grant Agreement | C27: RD 4280-2 | D27: 220 | E27: 1 | F27: =(D27)*(E27) -> 220 | G27: 0.75 | H27: =(F27)*(G27) -> 165 | I27: $62 | J27: =(H27)*(I27) -> $10,230
B30: Grand Totals | F30: =SUM(F8:F27) -> 3,395 | H30: =SUM(H8:H27) -> 4,756 | J30: =SUM(J8:J27) -> 294,861
B32: Forms Approved Under Other OMB Numbers
B33: Application for Federal Assistance | C33: SF 424 (4040-0004) | D33: 220 | E33: 1 | F33: =(D33)*(E33) -> 220 | G33: 1 | H33: =(F33)*(G33) -> 220
B34: Assurances - Non-Construction Program | C34: SF 424B (4040-0007) | D34: 220 | E34: 1 | F34: =(D34)*(E34) -> 220 | G34: 0.25 | H34: =(F34)*(G34) -> 55
B35: Financial Status Report | C35: SF-245 (0348-0061) | D35: 220 | E35: 1 | F35: =(D35)*(E35) -> 220 | G35: 0.50 | H35: =(F35)*(G35) -> 110
B36: Request for Advance or Reimbursement | C36: SF-270 (0348-0004) | D36: 220 | E36: 1 | F36: =(D36)*(E36) -> 220 | G36: 1 | H36: =(F36)*(G36) -> 220
B37: Disclosure of Lobbying Activities | C37: SF LLL (0348-0046) | D37: 220 | E37: 1 | F37: =(D37)*(E37) -> 220 | G37: 0.13 | H37: =(F37)*(G37) -> 29
B38: Totals | F38: =SUM(F33:F37) -> 1,100 | H38: =SUM(H33:H37) -> 634

Sheet FedGov Cost
A1: Rollup of Costs
A2: Feasibility Study Grants | B2: Applicants or Grantees | C2: Hours | D2: Rate | E2: Cost | F2: 3-year Average
A3: Acknowledge and review application | B3: 1062 | C3: 4 | D3: 42 | E3: =+B3*C3*D3 -> $178,416 | F3: =+E3/3 -> $59,472
A4: Evaluate and score | B4: 1062 | C4: 2 | D4: 42 | E4: $89,208 | F4: =+E4/3 -> $29,736
A5: Inform applicants of selection results | B5: 1062 | C5: 1 | D5: 42 | E5: $44,604 | F5: $14,868
A6: Legal document preparation | B6: 660 | C6: 8 | D6: 42 | E6: $221,760 | F6: $73,920
A7: Release and advance of funds | B7: 495 | C7: 1 | D7: 42 | E7: $20,790 | F7: $6,930
A8: Performace Report - Semiannual | B8: 743 | C8: 1 | D8: 42 | E8: $31,206 | F8: $10,402
A9: Performace Report - Final | B9: 357 | C9: 1 | D9: 42 | E9: $14,994 | F9: $4,998
A10: Annual Reports | B10: 275 | C10: 0.5 | D10: 42 | E10: $5,775 | F10: $1,925
A11: Other Reports | B11: 180 | C11: 1 | D11: 42 | E11: $7,560 | F11: $2,520
A12: Review feasibility studies for approval | B12: 495 | C12: 4 | D12: 42 | E12: $83,160 | F12: $27,720
A13: Publication in the FR | E13: $43,000 | F13: $14,333
A14: Total Over Three Years | E14: =SUM(E3:E13) -> $740,473 | F14: $246,824
